[Event "Live Chess"]
[Site "Chess.com"]
[Date "2023.05.20"]
[Round "-"]
[White "Nazar_777"]
[Black "raminguy"]
[Result "0-1"]
[WhiteElo "1609"]
[BlackElo "1961"]
[TimeControl "300"]
[EndTime "14:03:42 PDT"]
[Termination "raminguy won by checkmate"]

1. e3 {[%clk 0:04:50.6]} 1... e5 {[%clk 0:04:58]} 2. h4 {[%clk 0:04:50]} 2... d5
{[%clk 0:04:55.9]} 3. a3 {[%clk 0:04:49.5]} 3... Nc6 {[%clk 0:04:54.5]} 4. c4
{[%clk 0:04:49]} 4... d4 {[%clk 0:04:52]} 5. Nf3 {[%clk 0:04:47.3]} 5... Nf6
{[%clk 0:04:42.1]} 6. Be2 {[%clk 0:04:46.1]} 6... d3 {[%clk 0:04:39.7]} 7. Bf1
{[%clk 0:04:45.1]} 7... e4 {[%clk 0:04:38]} 8. Ng1 {[%clk 0:04:43.4]} 8... Be6
{[%clk 0:04:32]} 9. b3 {[%clk 0:04:42.3]} 9... Bd6 {[%clk 0:04:26.8]} 10. Bb2
{[%clk 0:04:41.3]} 10... O-O {[%clk 0:04:24.4]} 11. Nh3 {[%clk 0:04:40.1]} 11...
Bg4 {[%clk 0:04:19.8]} 12. Qc1 {[%clk 0:04:38.4]} 12... Re8 {[%clk 0:04:12.2]}
13. Nc3 {[%clk 0:04:37.1]} 13... a6 {[%clk 0:04:07]} 14. Nd5 {[%clk 0:04:35.9]}
14... Nxd5 {[%clk 0:04:01.7]} 15. cxd5 {[%clk 0:04:34.6]} 15... Ne7 {[%clk
0:04:01.1]} 16. Ng5 {[%clk 0:04:31.1]} 16... Nxd5 {[%clk 0:03:52.8]} 17. Qc4
{[%clk 0:04:29]} 17... Bf8 {[%clk 0:02:41.5]} 18. Nxe4 {[%clk 0:04:21.4]} 18...
b5 {[%clk 0:02:39.2]} 19. Qd4 {[%clk 0:04:10.3]} 19... c5 {[%clk 0:02:15.1]} 20.
Qxd3 {[%clk 0:04:06.4]} 20... Bf5 {[%clk 0:02:12.9]} 21. f3 {[%clk 0:03:59.3]}
21... Bg6 {[%clk 0:01:44.8]} 22. h5 {[%clk 0:03:52.9]} 22... Bxe4 {[%clk
0:01:42.1]} 23. fxe4 {[%clk 0:03:50.4]} 23... Nc7 {[%clk 0:01:29.3]} 24. Qxd8
{[%clk 0:03:48.7]} 24... Raxd8 {[%clk 0:01:27.7]} 25. Ke2 {[%clk 0:03:45.7]}
25... Rxe4 {[%clk 0:01:25.5]} 26. g3 {[%clk 0:03:43.2]} 26... c4 {[%clk
0:01:18.2]} 27. b4 {[%clk 0:03:39.9]} 27... Nd5 {[%clk 0:01:10.6]} 28. Bg2
{[%clk 0:03:36]} 28... Ree8 {[%clk 0:01:09]} 29. Bxd5 {[%clk 0:03:34.6]} 29...
Rxd5 {[%clk 0:01:07.2]} 30. Bc3 {[%clk 0:03:33.4]} 30... Rg5 {[%clk 0:01:04.4]}
31. Rag1 {[%clk 0:03:29.5]} 31... Bd6 {[%clk 0:00:56]} 32. g4 {[%clk 0:03:27.7]}
32... Re4 {[%clk 0:00:53.5]} 33. h6 {[%clk 0:03:21.4]} 33... Rexg4 {[%clk
0:00:50]} 34. Rxg4 {[%clk 0:03:18.6]} 34... Rxg4 {[%clk 0:00:49.9]} 35. Bxg7
{[%clk 0:03:17]} 35... Rg2+ {[%clk 0:00:43.4]} 36. Kd1 {[%clk 0:03:11.4]} 36...
Bf8 {[%clk 0:00:40.4]} 37. Bd4 {[%clk 0:03:06]} 37... Rg6 {[%clk 0:00:37.6]} 38.
Kc2 {[%clk 0:02:59.5]} 38... Bxh6 {[%clk 0:00:35.5]} 39. Rh5 {[%clk 0:02:52.4]}
39... Bg7 {[%clk 0:00:34.2]} 40. Rd5 {[%clk 0:02:42.1]} 40... Bxd4 {[%clk
0:00:32]} 41. exd4 {[%clk 0:02:40.5]} 41... Rg3 {[%clk 0:00:28.3]} 42. Rd8+
{[%clk 0:02:38.7]} 42... Kg7 {[%clk 0:00:26.7]} 43. d5 {[%clk 0:02:37.7]} 43...
Rxa3 {[%clk 0:00:24.8]} 44. d6 {[%clk 0:02:34.5]} 44... Rd3 {[%clk 0:00:23.8]}
45. d7 {[%clk 0:02:32.3]} 45... f5 {[%clk 0:00:20.4]} 46. Kd1 {[%clk 0:02:05.1]}
46... c3 {[%clk 0:00:18.9]} 47. Kc2 {[%clk 0:01:49.2]} 47... cxd2 {[%clk
0:00:17]} 48. Kd1 {[%clk 0:01:42.3]} 48... f4 {[%clk 0:00:15.2]} 49. Ra8 {[%clk
0:01:37.4]} 49... Rxd7 {[%clk 0:00:13.6]} 50. Rxa6 {[%clk 0:01:35.6]} 50... f3
{[%clk 0:00:13.2]} 51. Ra2 {[%clk 0:01:26.2]} 51... f2 {[%clk 0:00:12.4]} 52.
Rxd2 {[%clk 0:01:12.1]} 52... Rxd2+ {[%clk 0:00:11]} 53. Kxd2 {[%clk 0:01:10.9]}
53... f1=Q {[%clk 0:00:10.9]} 54. Kc3 {[%clk 0:01:09.8]} 54... Qc4+ {[%clk
0:00:10.8]} 55. Kd2 {[%clk 0:01:08.1]} 55... Qxb4+ {[%clk 0:00:10.6]} 56. Ke3
{[%clk 0:01:07.3]} 56... Qc4 {[%clk 0:00:10.5]} 57. Kd2 {[%clk 0:01:06.4]} 57...
b4 {[%clk 0:00:10.4]} 58. Ke3 {[%clk 0:01:04.9]} 58... b3 {[%clk 0:00:10.3]} 59.
Kd2 {[%clk 0:01:04.3]} 59... b2 {[%clk 0:00:10.2]} 60. Ke3 {[%clk 0:01:03.7]}
60... b1=R {[%clk 0:00:10.1]} 61. Kd2 {[%clk 0:01:02.9]} 61... Rb3 {[%clk
0:00:10]} 62. Ke1 {[%clk 0:01:02]} 62... Qc2 {[%clk 0:00:09.3]} 63. Kf1 {[%clk
0:01:00.1]} 63... Rb1# {[%clk 0:00:09.2]} 0-1

[Event "Live Chess"]
[Site "Chess.com"]
[Date "2023.05.20"]
[Round "-"]
[White "JoeyCage"]
[Black "xx_blindpuffin_xx"]
[Result "1/2-1/2"]
[WhiteElo "2308"]
[BlackElo "2184"]
[TimeControl "300"]
[EndTime "14:03:43 PDT"]
[Termination "Game drawn by repetition"]

1. e4 {[%clk 0:04:57.1]} 1... c6 {[%clk 0:04:58.2]} 2. d4 {[%clk 0:04:55.6]}
2... d5 {[%clk 0:04:57.3]} 3. e5 {[%clk 0:04:54.8]} 3... Bf5 {[%clk 0:04:55.4]}
4. c4 {[%clk 0:04:53.6]} 4... e6 {[%clk 0:04:54.9]} 5. Nc3 {[%clk 0:04:52.6]}
5... Ne7 {[%clk 0:04:48.1]} 6. Be3 {[%clk 0:04:50.4]} 6... h6 {[%clk 0:04:40.8]}
7. c5 {[%clk 0:04:48.4]} 7... Bg6 {[%clk 0:04:37.9]} 8. Nge2 {[%clk 0:04:44.4]}
8... Nf5 {[%clk 0:04:36.8]} 9. Ng3 {[%clk 0:04:43]} 9... Nxe3 {[%clk 0:04:35.2]}
10. fxe3 {[%clk 0:04:41.6]} 10... Nd7 {[%clk 0:04:33.1]} 11. Bd3 {[%clk
0:04:39.5]} 11... Bxd3 {[%clk 0:04:30]} 12. Qxd3 {[%clk 0:04:38]} 12... g6
{[%clk 0:04:29.4]} 13. O-O {[%clk 0:04:36.1]} 13... Be7 {[%clk 0:04:28.2]} 14.
e4 {[%clk 0:04:34.1]} 14... O-O {[%clk 0:04:26.5]} 15. exd5 {[%clk 0:04:32.4]}
15... cxd5 {[%clk 0:04:24.4]} 16. b4 {[%clk 0:04:28.4]} 16... Rc8 {[%clk
0:04:13]} 17. Rf3 {[%clk 0:04:26.5]} 17... b6 {[%clk 0:04:05.6]} 18. Raf1 {[%clk
0:04:22.3]} 18... bxc5 {[%clk 0:04:01.6]} 19. bxc5 {[%clk 0:04:20.7]} 19... Bxc5
{[%clk 0:03:58.4]} 20. Qe3 {[%clk 0:03:49.6]} 20... Bb4 {[%clk 0:03:45]} 21.
Qxh6 {[%clk 0:03:47.2]} 21... Bxc3 {[%clk 0:03:35.5]} 22. Nh5 {[%clk 0:03:40.6]}
22... Bxd4+ {[%clk 0:03:34.3]} 23. Kh1 {[%clk 0:03:38.7]} 23... Bxe5 {[%clk
0:03:27]} 24. Rxf7 {[%clk 0:03:31.1]} 24... Rxf7 {[%clk 0:03:04.6]} 25. Qxg6+
{[%clk 0:03:15.6]} 25... Rg7 {[%clk 0:03:01.9]} 26. Qxe6+ {[%clk 0:03:13.3]}
26... Kh7 {[%clk 0:02:55.5]} 27. Nxg7 {[%clk 0:03:08.6]} 27... Bxg7 {[%clk
0:02:55.4]} 28. Qh3+ {[%clk 0:03:05.7]} 28... Bh6 {[%clk 0:02:36.1]} 29. Qf5+
{[%clk 0:02:55.9]} 29... Kh8 {[%clk 0:02:33.9]} 30. Qe6 {[%clk 0:02:49.4]} 30...
Bg7 {[%clk 0:02:24.1]} 31. Qh3+ {[%clk 0:02:46.2]} 31... Kg8 {[%clk 0:02:21.6]}
32. Qe6+ {[%clk 0:02:44.6]} 32... Kh7 {[%clk 0:02:21]} 33. Qf5+ {[%clk 0:02:37]}
33... Kg8 {[%clk 0:02:06.9]} 34. Qe6+ {[%clk 0:02:35.2]} 34... Kh8 {[%clk
0:02:05.3]} 35. Qh3+ {[%clk 0:02:32.4]} 35... Kg8 {[%clk 0:02:02.6]} 36. Qe6+
{[%clk 0:02:30.7]} 1/2-1/2

[Event "Live Chess"]
[Site "Chess.com"]
[Date "2023.05.20"]
[Round "-"]
[White "luckywookie"]
[Black "LiamClery2020"]
[Result "0-1"]
[WhiteElo "743"]
[BlackElo "2084"]
[TimeControl "300"]
[EndTime "14:04:03 PDT"]
[Termination "LiamClery2020 won by checkmate"]

1. e4 {[%clk 0:04:57]} 1... Nf6 {[%clk 0:04:59.9]} 2. e5 {[%clk 0:04:55.5]} 2...
Nd5 {[%clk 0:04:58.9]} 3. Nf3 {[%clk 0:04:54.6]} 3... d6 {[%clk 0:04:57.7]} 4.
exd6 {[%clk 0:04:48.9]} 4... cxd6 {[%clk 0:04:56.4]} 5. d4 {[%clk 0:04:46.9]}
5... g6 {[%clk 0:04:54.9]} 6. c4 {[%clk 0:04:44.9]} 6... Nb6 {[%clk 0:04:53.8]}
7. Nc3 {[%clk 0:04:38.6]} 7... Bg7 {[%clk 0:04:52.9]} 8. Bd3 {[%clk 0:04:30.7]}
8... Nc6 {[%clk 0:04:48.7]} 9. Be3 {[%clk 0:04:26.7]} 9... Bg4 {[%clk
0:04:46.3]} 10. O-O {[%clk 0:04:24.6]} 10... O-O {[%clk 0:04:44.6]} 11. h3
{[%clk 0:04:23.1]} 11... Bxf3 {[%clk 0:04:43.4]} 12. Qxf3 {[%clk 0:04:20.9]}
12... Bxd4 {[%clk 0:04:42.8]} 13. Bxd4 {[%clk 0:04:19.5]} 13... Nxd4 {[%clk
0:04:42.7]} 14. Qf4 {[%clk 0:03:43.2]} 14... e5 {[%clk 0:04:39.8]} 15. Qh6
{[%clk 0:03:38.6]} 15... Rc8 {[%clk 0:04:37.2]} 16. Ne4 {[%clk 0:03:33.3]} 16...
f5 {[%clk 0:04:36.2]} 17. Ng5 {[%clk 0:03:30.7]} 17... Qe7 {[%clk 0:04:35]} 18.
h4 {[%clk 0:03:23.5]} 18... Qg7 {[%clk 0:04:33.7]} 19. Qxg7+ {[%clk 0:03:16.5]}
19... Kxg7 {[%clk 0:04:33.6]} 20. h5 {[%clk 0:03:12.8]} 20... h6 {[%clk
0:04:31.6]} 21. hxg6 {[%clk 0:03:11.1]} 21... hxg5 {[%clk 0:04:30.5]} 22. f3
{[%clk 0:03:05]} 22... Nxc4 {[%clk 0:04:28.8]} 23. g3 {[%clk 0:03:04]} 23... Ne3
{[%clk 0:04:25.9]} 24. Rf2 {[%clk 0:03:02.1]} 24... g4 {[%clk 0:04:25.1]} 25. f4
{[%clk 0:02:59.4]} 25... e4 {[%clk 0:04:23.8]} 26. Be2 {[%clk 0:02:45.9]} 26...
Rc2 {[%clk 0:04:21.2]} 27. Rh2 {[%clk 0:02:39.4]} 27... Nxe2+ {[%clk 0:04:18.7]}
28. Rxe2 {[%clk 0:02:36.5]} 28... Rxe2 {[%clk 0:04:18.6]} 29. Rc1 {[%clk
0:02:33.6]} 29... Rg2+ {[%clk 0:04:18.5]} 30. Kh1 {[%clk 0:02:26.6]} 30... Rh8#
{[%clk 0:04:18.4]} 0-1

[Event "Live Chess"]
[Site "Chess.com"]
[Date "2023.05.20"]
[Round "-"]
[White "chrisbradgate"]
[Black "mliszewski"]
[Result "0-1"]
[WhiteElo "861"]
[BlackElo "1858"]
[TimeControl "300"]
[EndTime "14:04:05 PDT"]
[Termination "mliszewski won by checkmate"]

1. d4 {[%clk 0:04:57.9]} 1... d5 {[%clk 0:04:58.5]} 2. Bf4 {[%clk 0:04:57]} 2...
c6 {[%clk 0:04:56.7]} 3. e3 {[%clk 0:04:55]} 3... Qb6 {[%clk 0:04:54.6]} 4. b3
{[%clk 0:04:42.6]} 4... Nf6 {[%clk 0:04:50.7]} 5. f3 {[%clk 0:04:36.5]} 5... Bf5
{[%clk 0:04:49.3]} 6. c3 {[%clk 0:04:29.9]} 6... Nbd7 {[%clk 0:04:43.6]} 7. Bd3
{[%clk 0:04:19]} 7... Bxd3 {[%clk 0:04:40.4]} 8. Qxd3 {[%clk 0:04:18.4]} 8... e6
{[%clk 0:04:37.3]} 9. Ne2 {[%clk 0:04:17.3]} 9... c5 {[%clk 0:04:36.7]} 10. O-O
{[%clk 0:04:10]} 10... Bd6 {[%clk 0:04:35.1]} 11. Bxd6 {[%clk 0:04:07.5]} 11...
Qxd6 {[%clk 0:04:34]} 12. Nf4 {[%clk 0:03:59.2]} 12... O-O {[%clk 0:04:31.2]}
13. Nd2 {[%clk 0:03:53.6]} 13... cxd4 {[%clk 0:04:30.3]} 14. exd4 {[%clk
0:03:47.9]} 14... Rac8 {[%clk 0:04:28.6]} 15. Rac1 {[%clk 0:03:45.8]} 15... Qxf4
{[%clk 0:04:26.3]} 16. g3 {[%clk 0:03:42]} 16... Qb8 {[%clk 0:04:23.3]} 17. f4
{[%clk 0:03:32.7]} 17... a6 {[%clk 0:04:20.6]} 18. h3 {[%clk 0:03:29.7]} 18...
b5 {[%clk 0:04:17.8]} 19. g4 {[%clk 0:03:21.2]} 19... Qa8 {[%clk 0:04:07.9]} 20.
g5 {[%clk 0:03:18.2]} 20... Ne4 {[%clk 0:04:07]} 21. Nxe4 {[%clk 0:03:16.9]}
21... dxe4 {[%clk 0:04:06.1]} 22. Qe3 {[%clk 0:03:11.7]} 22... f5 {[%clk
0:04:04.7]} 23. gxf6 {[%clk 0:03:08.3]} 23... Nxf6 {[%clk 0:04:02.1]} 24. Rf2
{[%clk 0:03:05.7]} 24... Qd5 {[%clk 0:03:57]} 25. Rg2 {[%clk 0:03:02.1]} 25...
Rc7 {[%clk 0:03:53.9]} 26. Kh2 {[%clk 0:02:58.7]} 26... Qh5 {[%clk 0:03:51.7]}
27. Kh1 {[%clk 0:02:41.1]} 27... Qf3 {[%clk 0:03:49.7]} 28. Qxf3 {[%clk
0:02:32.3]} 28... exf3 {[%clk 0:03:48.7]} 29. Rf2 {[%clk 0:02:31.6]} 29... Nh5
{[%clk 0:03:44]} 30. Rxf3 {[%clk 0:02:26.2]} 30... Rxf4 {[%clk 0:03:42.1]} 31.
Rxf4 {[%clk 0:02:23]} 31... Nxf4 {[%clk 0:03:41.7]} 32. Rf1 {[%clk 0:02:20.7]}
32... Nxh3 {[%clk 0:03:33.7]} 33. Rf3 {[%clk 0:02:10]} 33... Ng5 {[%clk
0:03:32.6]} 34. Re3 {[%clk 0:02:02.4]} 34... Rxc3 {[%clk 0:03:29.5]} 35. Rxe6
{[%clk 0:02:00.3]} 35... Nxe6 {[%clk 0:03:27.9]} 36. Kg2 {[%clk 0:01:58.7]}
36... Nxd4 {[%clk 0:03:27.2]} 37. Kf2 {[%clk 0:01:56.9]} 37... Rc2+ {[%clk
0:03:26.1]} 38. Ke3 {[%clk 0:01:56.1]} 38... Nf5+ {[%clk 0:03:24.7]} 39. Ke4
{[%clk 0:01:55.1]} 39... Nd6+ {[%clk 0:03:23.7]} 40. Kd5 {[%clk 0:01:54.4]}
40... Rd2+ {[%clk 0:03:21.3]} 41. Kc6 {[%clk 0:01:52.7]} 41... Ne4 {[%clk
0:03:16.8]} 42. Kb6 {[%clk 0:01:50.6]} 42... Rxa2 {[%clk 0:03:16.7]} 43. Kc6
{[%clk 0:01:45.6]} 43... Nd2 {[%clk 0:03:15.5]} 44. b4 {[%clk 0:01:43.6]} 44...
Ra4 {[%clk 0:03:13.8]} 45. Kb6 {[%clk 0:01:42.3]} 45... Rxb4 {[%clk 0:03:12.4]}
46. Kxa6 {[%clk 0:01:41.3]} 46... Rb1 {[%clk 0:03:10.8]} 47. Kb6 {[%clk
0:01:40.1]} 47... b4 {[%clk 0:03:10.2]} 48. Kb5 {[%clk 0:01:39]} 48... b3 {[%clk
0:03:10]} 49. Kb4 {[%clk 0:01:38.2]} 49... b2 {[%clk 0:03:09.4]} 50. Kc3 {[%clk
0:01:36.2]} 50... Ne4+ {[%clk 0:03:07.7]} 51. Kd4 {[%clk 0:01:34.9]} 51... Rd1+
{[%clk 0:03:05.1]} 52. Kxe4 {[%clk 0:01:33.8]} 52... b1=Q+ {[%clk 0:03:04.5]}
53. Ke3 {[%clk 0:01:33.1]} 53... Qd3+ {[%clk 0:03:03.3]} 54. Kf4 {[%clk
0:01:31.9]} 54... Rf1+ {[%clk 0:03:03.2]} 55. Ke5 {[%clk 0:01:31]} 55... Rf5+
{[%clk 0:03:00.6]} 56. Ke6 {[%clk 0:01:29.5]} 56... Qd5+ {[%clk 0:02:59.1]} 57.
Ke7 {[%clk 0:01:28.3]} 57... Rf7+ {[%clk 0:02:58.3]} 58. Ke8 {[%clk 0:01:24.7]}
58... Qd7# {[%clk 0:02:58.2]} 0-1

[Event "Live Chess"]
[Site "Chess.com"]
[Date "2023.05.20"]
[Round "-"]
[White "bristolunichess"]
[Black "f4nomore"]
[Result "1-0"]
[WhiteElo "1805"]
[BlackElo "1377"]
[TimeControl "300"]
[EndTime "14:04:16 PDT"]
[Termination "bristolunichess won by resignation"]

1. b3 {[%clk 0:04:58.1]} 1... g6 {[%clk 0:04:59.9]} 2. Bb2 {[%clk 0:04:57.8]}
2... Bg7 {[%clk 0:04:59.8]} 3. Bxg7 {[%clk 0:04:56.4]} 3... Nf6 {[%clk 0:04:56]}
4. Bxh8 {[%clk 0:04:55.8]} 4... e6 {[%clk 0:04:54.9]} 5. Bxf6 {[%clk 0:04:54.5]}
5... Qxf6 {[%clk 0:04:53.3]} 6. Nc3 {[%clk 0:04:54.4]} 6... Nc6 {[%clk
0:04:51.5]} 7. f3 {[%clk 0:04:53.1]} 7... d5 {[%clk 0:04:50.6]} 8. g3 {[%clk
0:04:50.6]} 8... Bd7 {[%clk 0:04:49.7]} 9. Bg2 {[%clk 0:04:49.5]} 9... O-O-O
{[%clk 0:04:48.4]} 10. Nh3 {[%clk 0:04:48.5]} 10... e5 {[%clk 0:04:45.1]} 11.
Nf2 {[%clk 0:04:47]} 11... d4 {[%clk 0:04:43.1]} 12. Nce4 {[%clk 0:04:45.3]}
12... Qe7 {[%clk 0:04:40.8]} 13. d3 {[%clk 0:04:43.5]} 13... f5 {[%clk
0:04:39.1]} 14. Nd2 {[%clk 0:04:42.9]} 14... Qb4 {[%clk 0:04:29.4]} 15. O-O
{[%clk 0:04:40.5]} 15... Qc3 {[%clk 0:04:25.2]} 16. a3 {[%clk 0:04:37.4]} 16...
Ne7 {[%clk 0:04:20.2]} 17. Ra2 {[%clk 0:04:34.3]} 17... Bc6 {[%clk 0:04:18.1]}
18. b4 {[%clk 0:04:26.9]} 18... Bd7 {[%clk 0:03:58.2]} 19. Nc4 {[%clk
0:04:09.4]} 19... e4 {[%clk 0:03:49.6]} 20. fxe4 {[%clk 0:04:04.2]} 20... fxe4
{[%clk 0:03:48.1]} 21. Nxe4 {[%clk 0:04:04.1]} 21... Bf5 {[%clk 0:03:37.4]} 22.
Nxc3 {[%clk 0:04:02.2]} 1-0

[Event "Live Chess"]
[Site "Chess.com"]
[Date "2023.05.20"]
[Round "-"]
[White "BillW-GrangerIN"]
[Black "grillage"]
[Result "0-1"]
[WhiteElo "265"]
[BlackElo "1852"]
[TimeControl "300"]
[EndTime "14:04:26 PDT"]
[Termination "grillage won by resignation"]

1. e4 {[%clk 0:04:55.3]} 1... d5 {[%clk 0:04:58]} 2. Nc3 {[%clk 0:04:45.2]} 2...
dxe4 {[%clk 0:04:54.2]} 3. Nxe4 {[%clk 0:04:38.9]} 3... Bf5 {[%clk 0:04:53.6]}
4. Bc4 {[%clk 0:04:28.6]} 4... Bxe4 {[%clk 0:04:49.5]} 5. d3 {[%clk 0:04:19.8]}
5... Bxg2 {[%clk 0:04:47.9]} 6. Bf4 {[%clk 0:03:52.8]} 6... Nc6 {[%clk
0:04:33.2]} 7. Qh5 {[%clk 0:03:36.5]} 7... e6 {[%clk 0:04:26.4]} 8. O-O-O {[%clk
0:03:26.5]} 8... Nf6 {[%clk 0:04:22.2]} 9. Qg5 {[%clk 0:03:18.3]} 9... Bxh1
{[%clk 0:04:20.3]} 10. Nf3 {[%clk 0:03:08.1]} 10... Bxf3 {[%clk 0:04:19]} 11.
Re1 {[%clk 0:02:47.4]} 11... Nd5 {[%clk 0:04:15.6]} 12. Qxd8+ {[%clk 0:02:43.3]}
12... Rxd8 {[%clk 0:04:13.5]} 13. Bxd5 {[%clk 0:02:34.3]} 13... Bxd5 {[%clk
0:04:10.8]} 0-1

[Event "Live Chess"]
[Site "Chess.com"]
[Date "2023.05.20"]
[Round "-"]
[White "elvenstar"]
[Black "Olisingapore"]
[Result "0-1"]
[WhiteElo "1578"]
[BlackElo "1871"]
[TimeControl "300"]
[EndTime "14:04:40 PDT"]
[Termination "Olisingapore won on time"]

1. e4 {[%clk 0:04:58.9]} 1... c5 {[%clk 0:04:57.5]} 2. Nf3 {[%clk 0:04:56]} 2...
d6 {[%clk 0:04:56.7]} 3. Bc4 {[%clk 0:04:53.7]} 3... Nf6 {[%clk 0:04:55.4]} 4.
d3 {[%clk 0:04:51.9]} 4... Nc6 {[%clk 0:04:54.9]} 5. O-O {[%clk 0:04:49.3]} 5...
g6 {[%clk 0:04:54.4]} 6. Bg5 {[%clk 0:04:47.3]} 6... Bg7 {[%clk 0:04:53.1]} 7.
Qd2 {[%clk 0:04:45.8]} 7... h6 {[%clk 0:04:51.1]} 8. Bf4 {[%clk 0:04:43.2]} 8...
Ng4 {[%clk 0:04:46.6]} 9. Nc3 {[%clk 0:04:39.9]} 9... a6 {[%clk 0:04:34.7]} 10.
h3 {[%clk 0:04:38.3]} 10... Nf6 {[%clk 0:04:32.4]} 11. a4 {[%clk 0:04:35]} 11...
e5 {[%clk 0:04:28.8]} 12. Be3 {[%clk 0:04:31.6]} 12... Nh5 {[%clk 0:04:09.1]}
13. Nd5 {[%clk 0:04:24.1]} 13... Be6 {[%clk 0:04:00.1]} 14. c3 {[%clk
0:04:15.3]} 14... Ne7 {[%clk 0:03:50.2]} 15. Rad1 {[%clk 0:04:00.5]} 15... Bxd5
{[%clk 0:03:44.8]} 16. Bxd5 {[%clk 0:03:57.3]} 16... Nxd5 {[%clk 0:03:44]} 17.
exd5 {[%clk 0:03:56.3]} 17... f5 {[%clk 0:03:40.6]} 18. Rfe1 {[%clk 0:03:48.4]}
18... Qc7 {[%clk 0:03:35.8]} 19. b4 {[%clk 0:03:14.9]} 19... b6 {[%clk
0:03:28.3]} 20. Rb1 {[%clk 0:03:02.5]} 20... Kf7 {[%clk 0:03:14.9]} 21. Qa2
{[%clk 0:02:54]} 21... f4 {[%clk 0:02:51]} 22. Bd2 {[%clk 0:02:49.6]} 22... g5
{[%clk 0:02:48.4]} 23. d4 {[%clk 0:02:42.8]} 23... c4 {[%clk 0:02:27.8]} 24.
dxe5 {[%clk 0:02:38.9]} 24... Bxe5 {[%clk 0:02:27.4]} 25. Nxe5+ {[%clk
0:02:36.9]} 25... dxe5 {[%clk 0:02:25.7]} 26. d6 {[%clk 0:02:08.2]} 26... Qxd6
{[%clk 0:02:09.9]} 27. Qxc4+ {[%clk 0:02:06]} 27... Qe6 {[%clk 0:02:07.4]} 28.
Qc7+ {[%clk 0:01:57.7]} 28... Kf6 {[%clk 0:02:03.7]} 29. Qb7 {[%clk 0:01:29]}
29... Rad8 {[%clk 0:01:47.6]} 30. Rbd1 {[%clk 0:01:25.4]} 30... Kg6 {[%clk
0:01:40.9]} 31. Qe4+ {[%clk 0:01:18.4]} 31... Qf5 {[%clk 0:01:38.8]} 32. Qc6+
{[%clk 0:00:58]} 32... Nf6 {[%clk 0:01:35.5]} 33. Qxb6 {[%clk 0:00:42.5]} 33...
Qc2 {[%clk 0:01:01.3]} 0-1

[Event "Live Chess"]
[Site "Chess.com"]
[Date "2023.05.20"]
[Round "-"]
[White "ChessTWSS"]
[Black "Geomorph"]
[Result "1-0"]
[WhiteElo "1557"]
[BlackElo "1246"]
[TimeControl "300"]
[EndTime "14:04:41 PDT"]
[Termination "ChessTWSS won by resignation"]

1. d4 {[%clk 0:04:55.2]} 1... d5 {[%clk 0:04:59.1]} 2. Bf4 {[%clk 0:04:48.9]}
2... Nf6 {[%clk 0:04:57.2]} 3. e3 {[%clk 0:04:44.4]} 3... c5 {[%clk 0:04:56.2]}
4. c3 {[%clk 0:04:40.9]} 4... Qb6 {[%clk 0:04:54.9]} 5. Qb3 {[%clk 0:04:35.1]}
5... cxd4 {[%clk 0:04:51.4]} 6. Qxb6 {[%clk 0:04:29.2]} 6... axb6 {[%clk
0:04:50.2]} 7. cxd4 {[%clk 0:04:27]} 7... Nbd7 {[%clk 0:04:48.7]} 8. Bb5 {[%clk
0:04:17.1]} 8... Nh5 {[%clk 0:04:47]} 9. Bxd7+ {[%clk 0:04:08.8]} 9... Bxd7
{[%clk 0:04:44.7]} 10. Ne2 {[%clk 0:04:02.7]} 10... Nxf4 {[%clk 0:04:42.5]} 11.
Nxf4 {[%clk 0:04:01.8]} 11... e6 {[%clk 0:04:42.4]} 12. a3 {[%clk 0:03:55.1]}
12... Bd6 {[%clk 0:04:38.7]} 13. Nc3 {[%clk 0:03:48.6]} 13... O-O {[%clk
0:04:36.1]} 14. O-O {[%clk 0:03:35.3]} 14... e5 {[%clk 0:04:35.3]} 15. Nfxd5
{[%clk 0:03:26.1]} 15... Bc6 {[%clk 0:04:14.8]} 16. Nb4 {[%clk 0:03:20.1]} 16...
exd4 {[%clk 0:04:11.3]} 17. exd4 {[%clk 0:03:14.9]} 17... Bxb4 {[%clk
0:04:07.4]} 18. axb4 {[%clk 0:03:13.1]} 18... Rxa1 {[%clk 0:04:06.2]} 19. Rxa1
{[%clk 0:03:12.4]} 19... h6 {[%clk 0:04:01.9]} 20. h4 {[%clk 0:03:09.9]} 20...
Re8 {[%clk 0:04:00.6]} 21. g3 {[%clk 0:03:02.4]} 21... f6 {[%clk 0:03:59.3]} 22.
d5 {[%clk 0:02:58.1]} 22... Bd7 {[%clk 0:03:51.5]} 23. Ra7 {[%clk 0:02:47.5]}
23... Rb8 {[%clk 0:03:48.6]} 24. Ne4 {[%clk 0:02:33.6]} 24... Bb5 {[%clk
0:03:46.3]} 25. Nd6 {[%clk 0:02:26.9]} 25... Ba6 {[%clk 0:03:44.5]} 26. b5
{[%clk 0:02:16.4]} 26... Bxb5 {[%clk 0:03:43.2]} 27. Nxb5 {[%clk 0:02:15.3]}
27... Kf7 {[%clk 0:03:42.9]} 28. Nd6+ {[%clk 0:02:12.1]} 28... Ke7 {[%clk
0:03:42.3]} 29. Rxb7+ {[%clk 0:02:10.4]} 29... Rxb7 {[%clk 0:03:40.5]} 30. Nxb7
{[%clk 0:02:09.9]} 30... b5 {[%clk 0:03:39.5]} 31. b4 {[%clk 0:02:04.1]} 31...
g5 {[%clk 0:03:36.4]} 32. Kg2 {[%clk 0:02:02.2]} 32... gxh4 {[%clk 0:03:34.8]}
33. gxh4 {[%clk 0:02:01.3]} 33... h5 {[%clk 0:03:33.4]} 34. Kf3 {[%clk
0:02:00.2]} 34... f5 {[%clk 0:03:29.1]} 35. Kf4 {[%clk 0:01:57.9]} 1-0